Workbook

Sheet T-5004
B1: Calculation of TowerSizing
B4: Inlet Stream | F4: Outlet Stream
B5: Parameter | C5: Value | D5: Unit | F5: Parameter | G5: Value | H5: Unit
B6: L | C6: 8197 | D6: kg/h | F6: L | G6: 8524 | H6: kg/h
B7: G | C7: 11332 | D7: kg/h | F7: G | G7: 11004 | H7: kg/h
B8: Lm | C8: =C6/3600 -> 2.276944444 | D8: kg/s | F8: Lm | G8: =G6/3600 -> 2.367777778 | H8: kg/s
B9: Gm | C9: =C7/3600 -> 3.147777778 | D9: kg/s | F9: Gm | G9: =G7/3600 -> 3.056666667 | H9: kg/s
B10: ρl | C10: 989 | F10: ρl | G10: 964
B11: ρv | C11: 1.15 | F11: ρv | G11: 1.11
B12: F | C12: =(C8/C9)*((C11/C10)^0.5) -> 0.02466602365 | F12: F | G12: =(G8/G9)*((G11/G10)^0.5) -> 0.02628547514
B14: C | C14: 0.03 | F14: C | G14: 0.0175
B15: Fp | C15: 18 | F15: Fp | G15: 18
B16: G^2 | C16: =(2.99*C11*(C10-C11)*C14)/(((0.567)^0.1)*((1000/C10)^0.1)*C15) -> 5.985082011 | F16: G^2 | G16: =(2.99*G11*(G10-G11)*G14)/(((0.567)^0.1)*((1000/G10)^0.1)*G15) -> 3.276316014
B17: G | C17: =C16^0.5 -> 2.446442726 | F17: G | G17: =G16^0.5 -> 1.810059671
B18: D | C18: =(C9/(C17*0.7854))^0.5 -> 1.279938367 | F18: D | G18: =(G9/(G17*0.7854))^0.5 -> 1.466331438
B20: By M.Behrouzi Educational Institute of Equipment and Process Design
B22: https://www.linkedin.com/in/mohammadrezabehrouzi

Sheet Calculate
B1: Calculation of TowerSizing
B4: Inlet Stream | F4: Outlet Stream
B5: Parameter | C5: Value | D5: Unit | F5: Parameter | G5: Value | H5: Unit
B6: L | D6: kg/h | F6: L | H6: kg/h
B7: G | D7: kg/h | F7: G | H7: kg/h
B8: Lm | C8: =C6/3600 -> 0 | D8: kg/s | F8: Lm | G8: =IFERROR(G6/3600,"") -> 0 | H8: kg/s
B9: Gm | C9: =C7/3600 -> 0 | D9: kg/s | F9: Gm | G9: =IFERROR(G7/3600,"") -> 0 | H9: kg/s
B10: ρl | F10: ρl
B11: ρv | F11: ρv
B12: F | C12: =IFERROR((C8/C9)*((C11/C10)^0.5),"") ->  | F12: F | G12: =IFERROR((G8/G9)*((G11/G10)^0.5),"") -> 
B14: C | F14: C
B15: Fp | F15: Fp
B16: G^2 | C16: =IFERROR((2.99*C11*(C10-C11)*C14)/(((0.567)^0.1)*((1000/C10)^0.1)*C15),"") ->  | F16: G^2 | G16: =IFERROR((2.99*G11*(G10-G11)*G14)/(((0.567)^0.1)*((1000/G10)^0.1)*G15),"") -> 
B17: G | C17: =IFERROR(C16^0.5,"") ->  | F17: G | G17: =IFERROR(G16^0.5,"") -> 
B18: D | C18: =IFERROR((C9/(C17*0.7854))^0.5,"") ->  | F18: D | G18: =IFERROR((G9/(G17*0.7854))^0.5,"") -> 
B20: By M.Behrouzi Educational Institute of Equipment and Process Design
B22: https://www.linkedin.com/in/mohammadrezabehrouzi
